Cogmind - Beta 13 @@@ ROGUE MODE // 2024.05.02 @ 00:36:14 Player: BionicBot Result: Destroyed by D-53 Grenadier with Mini Grenade Launcher Performance ------------- Evolutions (0) 0 Regions Visited (2) 400 Robots Destroyed (10) 50 Value Destroyed (308) 308 Prototype IDs (2) 40 Alien Tech Used (0) 0 Bonus (0) 0 TOTAL SCORE: 798 Bonus ------- None Cogmind --------- Core Integrity 0/250 Matter 300/300 Energy 100/100 System Corruption 6% Temperature Cool (2) Movement Walking (120) Location -10/Mines Parts ------- > --- POWER (1) -------- (None) > --- PROPULSION (2) --- Aluminum Leg > --- UTILITY (2) ------ Medium Storage Unit Signal Interpreter > --- WEAPON (2) ------- (None) > --- INVENTORY (10) --- Small Storage Unit Sensor Array Light Armor Plating Beam Rifle Beam Cannon Assault Rifle Light Cannon Mining Laser Ripper Peak State ------------ > --- POWER ------------ Light Nuclear Core > --- PROPULSION ------- Aluminum Leg Aluminum Leg > --- UTILITY ---------- Medium Storage Unit Signal Interpreter > --- WEAPON ----------- EM Pulse Gun Light Assault Rifle > --- INVENTORY -------- Improved Ion Engine Aluminum Leg Small Storage Unit Sensor Array Light Armor Plating Beam Rifle Beam Cannon Assault Rifle Light Cannon Ripper [Rating: 10] Favorites ----------- Power Ion Engine Engine Ion Engine Power Core Light Nuclear Core Propulsion Aluminum Leg Leg Aluminum Leg Utility Medium Storage Unit Storage Medium Storage Unit Processor Signal Interpreter Protection Light Armor Plating Weapon Light Assault Rifle Energy Gun EM Pulse Gun Energy Cannon Beam Cannon Ballistic Gun Light Assault Rifle Ballistic Cannon Light Cannon Build | -11 -10 -10 ------- Run | Yrd Mat Min Slots Evolved . | . . . Power . | . . . Propulsion . | . . . Utility . | . . . Weapon . | . . . Parts Attached 22 | 6 5 11 Power 4 | 1 . 3 Engine 2 | 1 . 1 Core 2 | . . 2 Reactor . | . . . Propulsion 4 | 2 . 2 Treads . | . . . Leg 4 | 2 . 2 Wheel . | . . . Hover . | . . . Flight . | . . . Utility 4 | 1 3 . Device . | . . . Storage 2 | 1 1 . Processor 1 | . 1 . Hackware . | . . . Protection 1 | . 1 . Artifact . | . . . Weapon 10 | 2 2 6 Energy Gun 3 | 1 . 2 Energy Cannon 1 | . 1 . Ballistic Gun 5 | 1 1 3 Ballistic Cannon 1 | . . 1 Launcher . | . . . Special Weapon . | . . . Impact Weapon . | . . . Slashing Weapon . | . . . Piercing Weapon . | . . . Special Melee Weapon . | . . . Unidentified Prototypes . | . . . Corrupted Parts 1 | . . 1 System Corruption 2 | . . 2 Parts Lost 6 | . . 6 Power 1 | . . 1 Propulsion 2 | . . 2 Utility . | . . . Weapon 3 | . . 3 Highest Loss Streak 5 | . . 5 To Critical Strikes . | . . . Average Slot Usage (%) 99 | . 99 99 Engine 10 | . 14 7 Core 3 | . . 6 Leg 28 | . 28 28 Storage 14 | . 14 14 Processor 8 | . . 14 Protection 5 | . 13 . Energy Gun 5 | . . 10 Energy Cannon 7 | . 13 3 Ballistic Gun 13 | . 14 13 Naked Turns . | . . . Heaviest Build 23 | 12 23 23 Greatest Support 20 | 20 20 20 Greatest Overweight (x) 1 | . 1 1 Average Overweight (x) . | . . . Largest Inventory Capacity 10 | 8 10 10 Average Capacity 9 | 6 9 10 Most Carried 10 | 1 8 10 Average Carried 7 | . 5 9 Final Capacity 10 | 8 10 10 Final Carried 9 | 1 8 9 Class Distribution -------------------- 80% | Mutant 19% | Scavenger-Mutant Dominant Class ---------------- Mutant | -10/Materials Mutant | -10/Mines Resources | -11 -10 -10 ----------- Run | Yrd Mat Min Matter Collected 478 | 202 11 265 Remotely . | . . . Salvage Created 374 | . 11 363 Parts 23 | . 3 20 Haulers Intercepted . | . . . Recyclers Shooed 1 | . . 1 Parts Field Recycled . | . . . Retrieved Matter . | . . . Parts Self-Destructed . | . . . Prevented . | . . . Kills | -11 -10 -10 ------- Run | Yrd Mat Min Combat Hostiles Destroyed 9 | . . 9 Guns 8 | . . 8 AOE 1 | . . 1 Classes Destroyed 4 | . 1 3 Watcher 1 | . 1 . Swarmer 3 | . . 3 Grunt 4 | . . 4 Sentry 2 | . . 2 Best Kill Streak 2 | . 1 2 Combat Bots Only 2 | . . 2 Max Kills in Single Turn 2 | . 1 2 Gunslinging 1 | . . 1 Exploded 1 | . . 1 Melee . | . . . Uniques/NPCs Destroyed . | . . . Combat | -11 -10 -10 -------- Run | Yrd Mat Min Hostile Shots Fired 57 | . . 57 Missed 10 | . . 10 Damage Taken 845 | . . 845 Core 250 | . . 250 Absorbed by Shields . | . . . Core Remaining (%) 100 | 100 . . Volleys Fired 34 | . 3 31 Largest 2 | . 2 2 Hottest 80 | . 80 80 Shots Fired 67 | . 6 61 Gun 57 | . 3 54 Cannon 10 | . 3 7 Launcher . | . . . Special . | . . . Kinetic 34 | . 3 31 Thermal 10 | . 3 7 Explosive . | . . . Electromagnetic 23 | . . 23 Robot Hit Streak 7 | . 1 7 Robot Miss Streak 5 | . 5 4 Penetration Max . | . . . Secondary Targets 1 | . . 1 Max Gunslinging Chain 1 | . . 1 Shots Hit Robots 38 | . 1 37 Core Hits 19 | . 1 18 Critical Kills . | . . . Critical Parts Destroyed . | . . . Critical Strikes . | . . . Melee Attacks . | . . . Impact . | . . . Slashing . | . . . Piercing . | . . . Sneak Attacks . | . . . Combat Hostiles . | . . . Follow-up Attacks . | . . . Damage Inflicted 453 | . 14 439 Guns 356 | . 14 342 Cannons 69 | . . 69 Explosions 28 | . . 28 Melee . | . . . Ramming . | . . . Kinetic 188 | . 14 174 Thermal 97 | . . 97 Explosive . | . . . Electromagnetic 168 | . . 168 Impact . | . . . Slashing . | . . . Piercing . | . . . Highest Corruption 6 | . 4 6 Average Corruption 4 | . 3 4 Corruption Purged . | . . . Corruption Blocked . | . . . Effects 18 | . 5 13 Message Errors 6 | . 1 5 Matter Fused 3 | . 1 2 Heat Flow Errors 1 | . . 1 Energy Discharges 6 | . 3 3 Data Loss (minor) 1 | . . 1 Data Loss (major) 1 | . . 1 Overload Shots . | . . . Overflow Damage . | . . . Projectiles . | . . . Explosions . | . . . Melee . | . . . Knockbacks . | . . . Impact . | . . . Kinetic . | . . . Secondary . | . . . Self-Inflicted Damage 32 | . . 32 Shots 1 | . . 1 Rammed . | . . . Targets Rammed . | . . . Kicked . | . . . Crushed . | . . . Highest Temperature 237 | . 39 237 Average Temperature 68 | . 19 73 Received Heat Transfer 123 | . . 123 Siege Activations . | . . . Robots Corrupted . | . . . Combat Hostiles . | . . . Parts Fried . | . . . Impact Corruptions . | . . . Robots Melted . | . . . Combat Hostiles . | . . . Parts Melted . | . . . Heat Transferred 198 | . . 198 Parts Sabotaged . | . . . Parts Stolen . | . . . Parts Stripped . | . . . Power Chain Reactions 1 | . . 1 Alert | -11 -10 -10 ------- Run | Yrd Mat Min Peak Influence 242 | . 26 242 Initial 9 | . . 9 Average 57 | . 11 100 Maximum Alert Level 1 | . . 1 Low Security (%) 91 | 100 100 84 Level 1 8 | . . 15 Level 2 . | . . . Level 3 . | . . . Level 4 . | . . . Level 5 . | . . . High Security . | . . . Max Security . | . . . Squads Dispatched 1 | . 1 . Investigation . | . . . Extermination . | . . . Reinforcement 1 | . 1 . Assault . | . . . Garrison . | . . . Intercept . | . . . Searches Triggered . | . . . Construction Impeded . | . . . Haulers Reinforced . | . . . Active Scanning Responses . | . . . Cargo Convoy Interrupts . | . . . Stealth | -11 -10 -10 --------- Run | Yrd Mat Min Distress Signals . | . . . Communications Jammed . | . . . Distress Signals . | . . . Times Spotted 12 | . 1 11 Peak Tracking Total 3 | . 1 3 Tactical Retreats . | . . . Traps | -11 -10 -10 ------- Run | Yrd Mat Min Traps Triggered 2 | . 2 . Indirectly . | . . . Trap Hack Attempts . | . . . Triggered . | . . . Disarmed . | . . . Reprogrammed . | . . . Reused . | . . . Traps Extracted . | . . . Installed . | . . . Triggered . | . . . Machines | -11 -10 -10 ---------- Run | Yrd Mat Min Machines Disabled 1 | . . 1 Max in Single Turn 1 | . . 1 Machines Repaired . | . . . Machines Dismantled . | . . . Machines Sabotaged . | . . . Overloaded Fab Kills . | . . . Hacking | -11 -10 -10 --------- Run | Yrd Mat Min Machines Accessed 1 | . 1 . Terminals 1 | . 1 . Fabricators . | . . . Repair Stations . | . . . Recycling Units . | . . . Scanalyzers . | . . . Garrison Access . | . . . Total Hacks 4 | . 4 . Successful 2 | . 2 . Failed 2 | . 2 . Catastrophic . | . . . Database Lockouts . | . . . Manual . | . . . Terminals 4 | . 4 . Fabricators . | . . . Repair Stations . | . . . Recycling Units . | . . . Scanalyzers . | . . . Garrison Access . | . . . Terminal Hacks 2 | . 2 . Prototype ID Bank 1 | . 1 . Locate Traps 1 | . 1 . Fabricator Hacks . | . . . Repair Station Hacks . | . . . Recycling Unit Hacks . | . . . Scanalyzer . | . . . Garrison Access Hacks . | . . . Unauthorized Hacks . | . . . Terminals . | . . . Fabricators . | . . . Repair Stations . | . . . Recycling Units . | . . . Scanalyzers . | . . . Garrison Access . | . . . Data Cores Recovered . | . . . Used . | . . . Hacking Detections 1 | . 1 . Full Trace Events . | . . . Feedback Events . | . . . Feedback Blocked . | . . . Robot Schematics Acquired . | . . . Robots Built . | . . . Authchips . | . . . Time . | . . . Total Robot Build Rating . | . . . Part Schematics Acquired . | . . . Parts Built . | . . . Authchips . | . . . Time . | . . . Total Part Build Rating . | . . . Parts Repaired . | . . . Time . | . . . Parts Recycled . | . . . Recycled Matter . | . . . Retrieved Matter . | . . . Retrieved Components . | . . . Parts Scanalyzed . | . . . Part Schematics Acquired . | . . . Parts Damaged . | . . . Bothacking | -11 -10 -10 ------------ Run | Yrd Mat Min Used RIF Installer . | . . . Robots Hacked . | . . . Non-combat . | . . . Combat . | . . . Robot Hacks Applied . | . . . Relay Couplers Released . | . . . Fabnet Peak Effective % . | . . . Robots Rewired . | . . . Allies Hacked . | . . . Hacks Repelled . | . . . Allies | -11 -10 -10 -------- Run | Yrd Mat Min Total Allies 1 | . . 1 Largest Group 1 | . . 1 Highest-Rated Group 31 | . . 31 Highest-Rated Ally 31 | . . 31 Total Orders . | . . . Ally Attacks 2 | . . 2 Total Damage 43 | . . 43 Kills . | . . . Allies Corrupted . | . . . Allies Melted . | . . . Intel | -11 -10 -10 ------- Run | Yrd Mat Min Robot Analysis Total . | . . . Derelict Logs Recovered 1 | . . 1 Drone Launches . | . . . Drone Recoveries . | . . . Exploration | -11 -10 -10 ------------- Run | Yrd Mat Min Turns Passed 943 | 64 382 497 Spaces Moved 508 | 46 236 226 Core 1 | 1 . . Treads . | . . . Legs 507 | 45 236 226 Wheels . | . . . Hover . | . . . Flight . | . . . Fastest Speed 50 | 50 120 120 Average Speed 136 | 118 152 123 Slowest Speed 190 | 120 190 190 Overloaded Moves . | . . . Propulsion Burnouts . | . . . Robots Hopped . | . . . Cave-ins Triggered . | . . . Exploration Rate (%) 33 | 3 52 46 Regions Visited 2 Branch Regions 1 Pre-discovered Areas . | . . . Known Exits Taken 1 | . 1 . Unknown Exits Taken 1 | 1 . . Scrap Searched . | . . . Spaces Dug . | . . . Terrain Destroyed 3 | . . 3 Melee . | . . . Projectile . | . . . AOE 3 | . . 3 Terrain Rammed . | . . . Walls Destroyed . | . . . Machines Disabled . | . . . Actions | -11 -10 -10 --------- Run | Yrd Mat Min Total 691 | 52 250 389 Wait 108 | . 2 106 Move 506 | 45 235 226 Hop . | . . . Pick Up 11 | 1 4 6 Fast Attach 9 | 6 2 1 Attach 2 | . . 2 Detach 1 | . 1 . Swap 11 | . 3 8 Drop 9 | . . 9 Fire 34 | . 3 31 Melee . | . . . Ram . | . . . Kick . | . . . Crush . | . . . Escape Stasis . | . . . Rewire . | . . . Trap . | . . . Miscellaneous . | . . . Route ------- -11/Scrapyard -10/Materials (discovered 3 exits: [*Mat] / *Min x2) -10/Mines (discovered 2 exits: [*Mat x2]) History --------- Turn | Location | Event 12 | -11/Scrapyard | Discovered new exit (range 16) 65 | -11/Scrapyard | Entered Materials 122 | -10/Materials | Discovered new exit (range 10) 178 | -10/Materials | Discovered new exit (range 14) 309 | -10/Materials | Build established: Mutant 422 | -10/Materials | Discovered new exit (range 15) 445 | -10/Materials | Identified exit to Mines 447 | -10/Materials | Entered Mines 455 | -10/Mines | Met a Derelict bent on vengeance 469 | -10/Mines | Discovered new exit (range 7) 601 | -10/Mines | A weapon hastily lodged in a ceiling crevice suddenly fell to the ground 614 | -10/Mines | Discovered new exit (range 8) 651 | -10/Mines | Learned Materials trap positions 796 | -10/Mines | Assembled infested the area 812 | -10/Mines | Received a Mining Laser from a helpful Derelict 936 | -10/Mines | Core integrity fell below 50% 940 | -10/Mines | Core integrity fell below 20% 944 | -10/Mines | Destroyed by D-53 Grenadier with Mini Grenade Launcher Last Messages --------------- 00835_ System corrupted: Component data lost. 00856_ R7WBP5JZB#ACNTW 00922_ GWPTFLIU4MWSZ8UQXBGZ= C|#0S 00925_ U-05 Engineer lays Concrete. 00926_ EM Pulse Gun destroyed. 00927_ U-05 Engineer lays Concrete. 00928_ The unstable cave ceiling collapses. 00928_ D-53 Grenadier suffers critical hit (Burn). 00929_ U-05 Engineer lays Concrete. 00930_ K2-QZP(g) destroyed. 00931_ The unstable cave ceiling collapses. 00931_ U-05 Engineer builds a Wall. 00933_ Aluminum Leg destroyed. 00934_ The unstable cave ceiling collapses. 00935_ Lgt. Assault Rifle destroyed. 00937_ The unstable cave ceiling collapses. 00939_ System corrupted: Energy discharge (-41). 00941_ The unstable cave ceiling collapses. 00944_ Aluminum Leg destroyed. 00944_ Lgt. Nuclear Core destroyed. Map ----- +----------------------------------------------------+ | | | | | | | | | | | | | | | | | | | | | | | | | | | | | | | | | ????????????????????????????????????????? | | ????????????????????????????????????????? | | ???????#######??????????????????????????? | | ??????## #?????????????????????????? | | ?????## #????????????????????????? | | ?????# #????????????????????????? | | ?????# #????????????????????????? | | ??????# ##???????????????????????? | | ????????# ###?????????????????????? | | ?????????# @ ##????????????????????? | | ?????????# ##???????????????????? | | ?????????# < ### ####????????????? | | ?????????# # #????????????? | | ?????????## #??????????? | | ??????????# ##### ##?????????? | | ??????????# #?????% #?????????? | | ??????????# ###??? #??????????? | | ??????????## d ### ##?????????? | | ???????????# # #?????????? | | ???????????# d # # #?????????? | | ???????????### [ #??????? | | ?????????????# % % ##??????? | | ????????????? # # ##????? | | ????????????## # ##???? | | ?????????????# #### #???? | | ????????####?# # # ##???? #???? | | ???????## ### ##########?? #????? | | ???????# % #?????? | | ???????# ########## ### #??? ? | | ???????# #????????# ## ### | | ???????# ##?????### "# #?? | | ???????## #?????# =" #?? | | ????????## #?????# %!* #???????? | | ????????## #?????# " !% #???????? | +----------------------------------------------------+ Best States ------------- Heat Dissipation 25 Energy Generation 14 Energy Capacity 265 Matter Stores 300 Matter Capacity 300 Sight Range 16 Terrain Scan Density 10 Armor Coverage 150 Evasion (%) 55 Item Schematics ----------------- None Robot Schematics ------------------ None Fabricated ------------ Nothing Alien Tech Used ----------------- None Achievements -------------- None Challenges ------------ None Game ------ Seed RagnarokLatentStreamer Manual? 0 Play Time 00:13:43 Cumulative 24.4 hours Start 2024.05.02 @ 00:23:29 End 2024.05.02 @ 00:36:14 Sessions 1 Manual Loads 0 Difficulty Rogue Special Mode None Game No. 26 Rogue 26 Adventurer 0 Explorer 0 Win Type - Total 0 Types 0/0/0/0/0/0/0/0/0 Lore% 6 Gallery% 23 Achievement% 18 Wizard Run 0 Options --------- Layout 0 ASCII 0 Keyboard 1 Movement Numpad Keybinds 0 Fullscreen 2 Font 18/SmallcapsGlow Map View 76x50 Zoom Use 0% Tactical HUD 1 Map Filters NONE Filters NONE Steam 1 RUN: ab1a21b4-b4ba-4c07-8e85-3b743fbd7eb4